[Event "*** Titled Tuesday Blitz"]
[Site "Chess.com"]
[Date "2020.04.14"]
[Round "6"]
[White "JLRHei"]
[Black "Halvard"]
[Result "1-0"]
[WhiteElo "2378"]
[BlackElo "2101"]
[TimeControl "180+1"]
[EndTime "11:03:48 PDT"]
[Termination "JLRHei won by resignation"]

1. d4 {[%clk 0:03:00.9]} 1... Nf6 {[%clk 0:02:59.8]} 2. c4 {[%clk 0:03:01.3]}
2... Nc6 {[%clk 0:02:59.7]} 3. Nf3 {[%clk 0:03:00.3]} 3... d6 {[%clk 0:02:59.7]}
4. g3 {[%clk 0:02:59.4]} 4... e5 {[%clk 0:02:59.7]} 5. Bg2 {[%clk 0:02:49.6]}
5... Be7 {[%clk 0:02:59.5]} 6. O-O {[%clk 0:02:49]} 6... O-O {[%clk 0:02:59.5]}
7. Nc3 {[%clk 0:02:49.5]} 7... a5 {[%clk 0:02:59.4]} 8. e4 {[%clk 0:02:47.6]}
8... Re8 {[%clk 0:02:49.5]} 9. h3 {[%clk 0:02:46.4]} 9... h6 {[%clk 0:02:45.9]}
10. Re1 {[%clk 0:02:43.3]} 10... Bf8 {[%clk 0:02:45.5]} 11. b3 {[%clk
0:02:40.2]} 11... g6 {[%clk 0:02:39]} 12. Be3 {[%clk 0:02:34]} 12... Bg7 {[%clk
0:02:38.7]} 13. Qd2 {[%clk 0:02:33.2]} 13... Kh7 {[%clk 0:02:38.8]} 14. Rad1
{[%clk 0:02:32.3]} 14... Qe7 {[%clk 0:02:29]} 15. Nd5 {[%clk 0:02:27.2]} 15...
Nxd5 {[%clk 0:02:28.1]} 16. exd5 {[%clk 0:02:28.1]} 16... Nb4 {[%clk 0:02:26.1]}
17. dxe5 {[%clk 0:02:24.7]} 17... dxe5 {[%clk 0:02:22.5]} 18. Bd4 {[%clk
0:01:55]} 18... f6 {[%clk 0:02:02.2]} 19. Nh4 {[%clk 0:01:54.5]} 19... f5 {[%clk
0:01:41.9]} 20. Kh2 {[%clk 0:01:30.1]} 20... Bd7 {[%clk 0:01:38.2]} 21. Bxe5
{[%clk 0:01:06]} 21... Bxe5 {[%clk 0:01:36.8]} 22. f4 {[%clk 0:01:01.8]} 22...
Qg7 {[%clk 0:01:06.9]} 23. fxe5 {[%clk 0:00:58.2]} 23... Rxe5 {[%clk 0:01:06.8]}
24. Rxe5 {[%clk 0:00:49.6]} 24... Qxe5 {[%clk 0:01:06]} 25. Re1 {[%clk
0:00:45.6]} 25... Qf6 {[%clk 0:01:05.4]} 26. a3 {[%clk 0:00:40.3]} 26... Na6
{[%clk 0:01:03.3]} 27. Qxa5 {[%clk 0:00:40.5]} 27... f4 {[%clk 0:00:50.9]} 28.
Nf3 {[%clk 0:00:29.7]} 28... fxg3+ {[%clk 0:00:49.9]} 29. Kxg3 {[%clk
0:00:30.2]} 29... Qd6+ {[%clk 0:00:44.2]} 30. Kf2 {[%clk 0:00:30.3]} 30... Rf8
{[%clk 0:00:43.5]} 31. Qc3 {[%clk 0:00:23.8]} 31... Nc5 {[%clk 0:00:37]} 32. b4
{[%clk 0:00:21.6]} 32... Na4 {[%clk 0:00:37.1]} 33. Qd4 {[%clk 0:00:20.7]} 33...
Rf4 {[%clk 0:00:34.3]} 34. Re7+ {[%clk 0:00:19]} 34... Qxe7 {[%clk 0:00:33.3]}
35. Qxf4 {[%clk 0:00:19.1]} 35... Nc3 {[%clk 0:00:33.1]} 36. Qxc7 {[%clk
0:00:16.9]} 36... Nd1+ {[%clk 0:00:18.2]} 37. Kg3 {[%clk 0:00:14]} 37... Ne3
{[%clk 0:00:15]} 38. Qe5 {[%clk 0:00:13.2]} 38... Nf5+ {[%clk 0:00:13.5]} 39.
Kh2 {[%clk 0:00:13.1]} 39... Qf7 {[%clk 0:00:13]} 40. Qf4 {[%clk 0:00:12.2]}
40... g5 {[%clk 0:00:12.5]} 41. Qe4 {[%clk 0:00:12.5]} 41... Kh8 {[%clk
0:00:12.2]} 42. Ne5 {[%clk 0:00:12.8]} 42... Qf6 {[%clk 0:00:11.6]} 43. Nxd7
{[%clk 0:00:12.8]} 1-0

[Event "*** Titled Tuesday Blitz"]
[Site "Chess.com"]
[Date "2020.04.14"]
[Round "6"]
[White "BrianEscalante"]
[Black "vlad_Sid"]
[Result "1-0"]
[WhiteElo "2514"]
[BlackElo "2637"]
[TimeControl "180+1"]
[EndTime "11:03:50 PDT"]
[Termination "BrianEscalante won by checkmate"]

1. e4 {[%clk 0:03:00.9]} 1... c6 {[%clk 0:02:58.7]} 2. d4 {[%clk 0:03:00.3]}
2... d5 {[%clk 0:02:58.8]} 3. f3 {[%clk 0:03:01.2]} 3... e6 {[%clk 0:02:58.6]}
4. Nc3 {[%clk 0:03:01.4]} 4... Nf6 {[%clk 0:02:53.8]} 5. e5 {[%clk 0:03:00.8]}
5... Nfd7 {[%clk 0:02:48.3]} 6. f4 {[%clk 0:03:00.9]} 6... c5 {[%clk 0:02:46.3]}
7. Nce2 {[%clk 0:03:00.9]} 7... Nc6 {[%clk 0:02:46.4]} 8. c3 {[%clk 0:03:01.2]}
8... Qb6 {[%clk 0:02:41.4]} 9. Nf3 {[%clk 0:03:01]} 9... cxd4 {[%clk 0:02:37.8]}
10. cxd4 {[%clk 0:03:00.7]} 10... Bb4+ {[%clk 0:02:38.2]} 11. Bd2 {[%clk
0:03:00.9]} 11... O-O {[%clk 0:02:37.6]} 12. a3 {[%clk 0:03:00.2]} 12... Bxd2+
{[%clk 0:02:37.2]} 13. Qxd2 {[%clk 0:03:01.1]} 13... Na5 {[%clk 0:02:37.2]} 14.
Qb4 {[%clk 0:02:51.4]} 14... Nc4 {[%clk 0:02:29.3]} 15. b3 {[%clk 0:01:55.2]}
15... Ne3 {[%clk 0:02:03.3]} 16. Qc3 {[%clk 0:01:54.3]} 16... Nf5 {[%clk
0:01:49]} 17. g4 {[%clk 0:01:48.8]} 17... Ne7 {[%clk 0:01:45.3]} 18. Bg2 {[%clk
0:01:02.1]} 18... Nb8 {[%clk 0:01:33.8]} 19. O-O {[%clk 0:01:01]} 19... Bd7
{[%clk 0:01:32.5]} 20. Ng3 {[%clk 0:00:57.6]} 20... Nbc6 {[%clk 0:01:22.6]} 21.
Rf2 {[%clk 0:00:47.8]} 21... Rac8 {[%clk 0:01:17.7]} 22. Qd3 {[%clk 0:00:43.8]}
22... Na5 {[%clk 0:01:15.7]} 23. Ng5 {[%clk 0:00:42.6]} 23... g6 {[%clk
0:01:08.4]} 24. b4 {[%clk 0:00:42.1]} 24... Bb5 {[%clk 0:01:04.3]} 25. Qd1
{[%clk 0:00:26.1]} 25... Nc4 {[%clk 0:01:01.8]} 26. f5 {[%clk 0:00:20]} 26...
exf5 {[%clk 0:00:52.7]} 27. gxf5 {[%clk 0:00:19.6]} 27... Ne3 {[%clk 0:00:53.2]}
28. Qd2 {[%clk 0:00:15.9]} 28... N3xf5 {[%clk 0:00:48.4]} 29. Nxf5 {[%clk
0:00:14.8]} 29... Nxf5 {[%clk 0:00:49.3]} 30. Bxd5 {[%clk 0:00:12.4]} 30... Qxd4
{[%clk 0:00:47.9]} 31. Bxf7+ {[%clk 0:00:09]} 31... Kh8 {[%clk 0:00:40.9]} 32.
Qxd4 {[%clk 0:00:09.1]} 32... Nxd4 {[%clk 0:00:41.8]} 33. e6 {[%clk 0:00:09.6]}
33... Nc6 {[%clk 0:00:19.8]} 34. Rc1 {[%clk 0:00:05]} 34... Kg7 {[%clk
0:00:19.8]} 35. Rxc6 {[%clk 0:00:04.8]} 35... Rxc6 {[%clk 0:00:15.9]} 36. e7
{[%clk 0:00:05]} 36... Rc1+ {[%clk 0:00:16.4]} 37. Kg2 {[%clk 0:00:04.9]} 37...
Rfc8 {[%clk 0:00:16.7]} 38. Ne6+ {[%clk 0:00:03.3]} 38... Kh6 {[%clk 0:00:16.2]}
39. Rf4 {[%clk 0:00:02.2]} 39... g5 {[%clk 0:00:14.3]} 40. Rf6# {[%clk 0:00:02]}
1-0

[Event "*** Titled Tuesday Blitz"]
[Site "Chess.com"]
[Date "2020.04.14"]
[Round "6"]
[White "Toro1234"]
[Black "dey2580"]
[Result "1-0"]
[WhiteElo "2629"]
[BlackElo "2478"]
[TimeControl "180+1"]
[EndTime "11:03:50 PDT"]
[Termination "Toro1234 won by resignation"]

1. d4 {[%clk 0:03:00.9]} 1... Nf6 {[%clk 0:02:59.8]} 2. c4 {[%clk 0:02:59.5]}
2... e6 {[%clk 0:03:00]} 3. Nc3 {[%clk 0:02:58]} 3... Bb4 {[%clk 0:03:00.1]} 4.
Qc2 {[%clk 0:02:58.2]} 4... b6 {[%clk 0:02:58.5]} 5. Bg5 {[%clk 0:02:57.3]} 5...
Bb7 {[%clk 0:02:57.8]} 6. f3 {[%clk 0:02:55.8]} 6... h6 {[%clk 0:02:57.6]} 7.
Bh4 {[%clk 0:02:55.4]} 7... g5 {[%clk 0:02:57]} 8. Bf2 {[%clk 0:02:48]} 8... d5
{[%clk 0:02:43.3]} 9. a3 {[%clk 0:02:38]} 9... Bf8 {[%clk 0:02:41.3]} 10. e4
{[%clk 0:02:37.5]} 10... dxe4 {[%clk 0:02:40.3]} 11. fxe4 {[%clk 0:02:35.3]}
11... Ng4 {[%clk 0:02:40.3]} 12. O-O-O {[%clk 0:02:28.9]} 12... Bg7 {[%clk
0:02:39.1]} 13. Nf3 {[%clk 0:02:25.8]} 13... Nxf2 {[%clk 0:02:36]} 14. Qxf2
{[%clk 0:02:26.7]} 14... Qe7 {[%clk 0:02:29.5]} 15. Be2 {[%clk 0:02:18.2]} 15...
Nc6 {[%clk 0:02:28]} 16. Kb1 {[%clk 0:02:10.4]} 16... O-O-O {[%clk 0:02:22.5]}
17. h3 {[%clk 0:02:10]} 17... h5 {[%clk 0:02:13.3]} 18. d5 {[%clk 0:01:58.8]}
18... Ne5 {[%clk 0:02:09.5]} 19. Nd4 {[%clk 0:01:54.7]} 19... Ba6 {[%clk
0:01:59.6]} 20. b3 {[%clk 0:01:50]} 20... Qxa3 {[%clk 0:01:53.5]} 21. Kc2 {[%clk
0:01:48.3]} 21... Qc5 {[%clk 0:01:44.1]} 22. Rhf1 {[%clk 0:01:46.2]} 22... Rhe8
{[%clk 0:01:26.2]} 23. Bxh5 {[%clk 0:01:35]} 23... Bxc4 {[%clk 0:01:19.8]} 24.
bxc4 {[%clk 0:01:31.4]} 24... Nxc4 {[%clk 0:01:19.5]} 25. Bxf7 {[%clk
0:01:12.2]} 25... Na3+ {[%clk 0:01:16]} 26. Kb3 {[%clk 0:01:03.4]} 26... a5
{[%clk 0:00:51.4]} 27. Bxe8 {[%clk 0:00:59.1]} 27... Qb4+ {[%clk 0:00:46.4]} 28.
Ka2 {[%clk 0:00:58.5]} 28... Qxc3 {[%clk 0:00:41.5]} 29. Qb2 {[%clk 0:00:52.8]}
29... Qc4+ {[%clk 0:00:28.4]} 30. Kxa3 {[%clk 0:00:49.1]} 30... Rxe8 {[%clk
0:00:21.4]} 31. Rf3 {[%clk 0:00:22]} 31... Be5 {[%clk 0:00:18.5]} 32. Qb3 {[%clk
0:00:17.2]} 32... Qc5+ {[%clk 0:00:18]} 33. Ka2 {[%clk 0:00:15.2]} 33... Bxd4
{[%clk 0:00:18.1]} 34. dxe6 {[%clk 0:00:13.1]} 34... a4 {[%clk 0:00:16.6]} 35.
Qxa4 {[%clk 0:00:10.8]} 35... Rxe6 {[%clk 0:00:16.4]} 36. Rxd4 {[%clk 0:00:05]}
36... Qxd4 {[%clk 0:00:14.5]} 37. Qxd4 {[%clk 0:00:04.5]} 37... Rc6 {[%clk
0:00:13.6]} 38. Rf8+ {[%clk 0:00:04.1]} 38... Kb7 {[%clk 0:00:13.8]} 39. Qd5
{[%clk 0:00:04.7]} 39... b5 {[%clk 0:00:13.5]} 40. Rb8+ {[%clk 0:00:03.8]} 40...
Kxb8 {[%clk 0:00:13.5]} 41. Qxc6 {[%clk 0:00:04.7]} 41... Kc8 {[%clk 0:00:14]}
42. Qxb5 {[%clk 0:00:05.6]} 1-0

[Event "*** Titled Tuesday Blitz"]
[Site "Chess.com"]
[Date "2020.04.14"]
[Round "6"]
[White "konradrutkowski"]
[Black "Zajdanek"]
[Result "0-1"]
[WhiteElo "2190"]
[BlackElo "2361"]
[TimeControl "180+1"]
[EndTime "11:03:50 PDT"]
[Termination "Zajdanek won on time"]

1. Nf3 {[%clk 0:03:00.9]} 1... d5 {[%clk 0:02:59.4]} 2. g3 {[%clk 0:03:00.8]}
2... c6 {[%clk 0:02:59.8]} 3. Bg2 {[%clk 0:03:00.9]} 3... e6 {[%clk 0:03:00.7]}
4. O-O {[%clk 0:03:01.3]} 4... f5 {[%clk 0:03:01.6]} 5. c4 {[%clk 0:03:00.8]}
5... Nf6 {[%clk 0:03:01.7]} 6. b3 {[%clk 0:02:57.1]} 6... Bc5 {[%clk 0:03:01]}
7. Bb2 {[%clk 0:02:57]} 7... O-O {[%clk 0:03:01]} 8. d3 {[%clk 0:02:57.2]} 8...
Qe7 {[%clk 0:03:00.2]} 9. Nbd2 {[%clk 0:02:55.2]} 9... Ba3 {[%clk 0:03:00.4]}
10. Qc1 {[%clk 0:02:51.8]} 10... Bxb2 {[%clk 0:02:59.7]} 11. Qxb2 {[%clk
0:02:52.7]} 11... Nbd7 {[%clk 0:02:59.5]} 12. Rac1 {[%clk 0:02:21.3]} 12... a5
{[%clk 0:02:59.1]} 13. a3 {[%clk 0:02:20.7]} 13... Ne8 {[%clk 0:02:32.9]} 14. b4
{[%clk 0:02:16]} 14... axb4 {[%clk 0:02:31.2]} 15. axb4 {[%clk 0:02:16.9]} 15...
Nb6 {[%clk 0:02:12.9]} 16. Ra1 {[%clk 0:02:05.3]} 16... Rb8 {[%clk 0:02:09]} 17.
Ne5 {[%clk 0:01:32.6]} 17... Nc7 {[%clk 0:01:56.1]} 18. Ndf3 {[%clk 0:01:21.7]}
18... Bd7 {[%clk 0:01:49.7]} 19. Qd4 {[%clk 0:01:14.3]} 19... Nc8 {[%clk
0:01:44.3]} 20. Rfb1 {[%clk 0:01:05]} 20... Be8 {[%clk 0:01:43.4]} 21. h4 {[%clk
0:00:34.3]} 21... h6 {[%clk 0:01:32.3]} 22. Qe3 {[%clk 0:00:27.9]} 22... Nd6
{[%clk 0:01:23.9]} 23. Nd4 {[%clk 0:00:19.4]} 23... f4 {[%clk 0:01:18.7]} 24.
Qd2 {[%clk 0:00:14.6]} 24... Qf6 {[%clk 0:00:59.1]} 25. Ndf3 {[%clk 0:00:09.3]}
25... fxg3 {[%clk 0:00:56.1]} 26. fxg3 {[%clk 0:00:10.2]} 26... Nf5 {[%clk
0:00:56.2]} 27. Kh2 {[%clk 0:00:09.9]} 27... Rd8 {[%clk 0:00:44.7]} 28. Rf1
{[%clk 0:00:09.3]} 28... dxc4 {[%clk 0:00:43.1]} 29. Nxc4 {[%clk 0:00:09.2]}
29... Qg6 {[%clk 0:00:29.4]} 30. Qe1 {[%clk 0:00:08.6]} 30... Qh5 {[%clk
0:00:18.5]} 31. Nce5 {[%clk 0:00:06.7]} 31... Ne3 {[%clk 0:00:14]} 32. g4 {[%clk
0:00:03.1]} 32... Nxg4+ {[%clk 0:00:08.7]} 0-1

[Event "*** Titled Tuesday Blitz"]
[Site "Chess.com"]
[Date "2020.04.14"]
[Round "6"]
[White "IMUffeVinther-Schou"]
[Black "Gubajdullin"]
[Result "1-0"]
[WhiteElo "2336"]
[BlackElo "2469"]
[TimeControl "180+1"]
[EndTime "11:03:52 PDT"]
[Termination "IMUffeVinther-Schou won by checkmate"]

1. e4 {[%clk 0:03:00.9]} 1... c6 {[%clk 0:02:59.3]} 2. d4 {[%clk 0:03:00.2]}
2... d5 {[%clk 0:02:59.5]} 3. e5 {[%clk 0:03:00]} 3... Bf5 {[%clk 0:02:59.4]} 4.
h4 {[%clk 0:02:59.6]} 4... h5 {[%clk 0:02:58.2]} 5. c4 {[%clk 0:02:59.1]} 5...
e6 {[%clk 0:02:58]} 6. Nc3 {[%clk 0:02:58.5]} 6... Nh6 {[%clk 0:02:56.7]} 7.
Nge2 {[%clk 0:02:54.2]} 7... Be7 {[%clk 0:02:56.6]} 8. cxd5 {[%clk 0:02:41.8]}
8... exd5 {[%clk 0:02:47.1]} 9. Bxh6 {[%clk 0:02:31.3]} 9... Rxh6 {[%clk
0:02:46.3]} 10. Ng3 {[%clk 0:02:30.4]} 10... Be6 {[%clk 0:02:07.1]} 11. Nxh5
{[%clk 0:02:20.5]} 11... Kf8 {[%clk 0:02:06.9]} 12. g3 {[%clk 0:02:16.7]} 12...
Qb6 {[%clk 0:02:02.9]} 13. Nf4 {[%clk 0:01:50.1]} 13... Qxb2 {[%clk 0:02:00]}
14. Rc1 {[%clk 0:01:43.9]} 14... Bb4 {[%clk 0:01:56.6]} 15. Qd2 {[%clk
0:01:41.3]} 15... Qxd2+ {[%clk 0:01:54.3]} 16. Kxd2 {[%clk 0:01:40.6]} 16... c5
{[%clk 0:01:49.7]} 17. Nd3 {[%clk 0:01:29.9]} 17... Ba3 {[%clk 0:01:20.2]} 18.
Rb1 {[%clk 0:01:27]} 18... cxd4 {[%clk 0:01:19.4]} 19. Nb5 {[%clk 0:01:26]}
19... Be7 {[%clk 0:01:18.3]} 20. Nc7 {[%clk 0:01:24.5]} 20... Bd8 {[%clk
0:00:53.8]} 21. Nxa8 {[%clk 0:01:23.3]} 21... Ba5+ {[%clk 0:00:53.4]} 22. Ke2
{[%clk 0:01:18.4]} 22... Bc8 {[%clk 0:00:50.1]} 23. Bh3 {[%clk 0:01:16.3]} 23...
Bxh3 {[%clk 0:00:44.2]} 24. Rxb7 {[%clk 0:01:11.9]} 24... Bg4+ {[%clk 0:00:13]}
25. f3 {[%clk 0:01:11.2]} 25... Nc6 {[%clk 0:00:12.7]} 26. fxg4 {[%clk
0:01:08.6]} 26... Re6 {[%clk 0:00:12]} 27. Rc1 {[%clk 0:00:58.7]} 27... Kg8
{[%clk 0:00:07.9]} 28. Nc7 {[%clk 0:00:52.4]} 28... Bxc7 {[%clk 0:00:06.9]} 29.
Rxc7 {[%clk 0:00:51.5]} 29... Nxe5 {[%clk 0:00:06.8]} 30. Nxe5 {[%clk
0:00:51.2]} 30... Rxe5+ {[%clk 0:00:07.1]} 31. Kf2 {[%clk 0:00:50.2]} 31... d3
{[%clk 0:00:05.6]} 32. Rd1 {[%clk 0:00:47.5]} 32... Re2+ {[%clk 0:00:05.3]} 33.
Kf3 {[%clk 0:00:47.1]} 33... Rxa2 {[%clk 0:00:05]} 34. Rxd3 {[%clk 0:00:46.5]}
34... Ra5 {[%clk 0:00:05.1]} 35. g5 {[%clk 0:00:44.7]} 35... g6 {[%clk
0:00:04.1]} 36. g4 {[%clk 0:00:44]} 36... a6 {[%clk 0:00:04.1]} 37. h5 {[%clk
0:00:43.5]} 37... Rb5 {[%clk 0:00:02]} 38. h6 {[%clk 0:00:40.7]} 38... a5 {[%clk
0:00:01.3]} 39. Rd4 {[%clk 0:00:39.5]} 39... a4 {[%clk 0:00:02.2]} 40. Rxa4
{[%clk 0:00:37.8]} 40... Rb3+ {[%clk 0:00:03.1]} 41. Kf4 {[%clk 0:00:37.3]}
41... d4 {[%clk 0:00:03.2]} 42. Ra8+ {[%clk 0:00:35.5]} 42... Kh7 {[%clk
0:00:03.2]} 43. Rxf7# {[%clk 0:00:34.7]} 1-0

[Event "*** Titled Tuesday Blitz"]
[Site "Chess.com"]
[Date "2020.04.14"]
[Round "6"]
[White "Zmof"]
[Black "IljaJoke"]
[Result "1-0"]
[WhiteElo "2328"]
[BlackElo "2507"]
[TimeControl "180+1"]
[EndTime "11:03:53 PDT"]
[Termination "Zmof won on time"]

1. e4 {[%clk 0:03:00.9]} 1... g6 {[%clk 0:03:00.3]} 2. d4 {[%clk 0:02:58.4]}
2... Nf6 {[%clk 0:03:00.6]} 3. Bd3 {[%clk 0:02:57.4]} 3... d5 {[%clk 0:02:44.5]}
4. exd5 {[%clk 0:02:50.6]} 4... Nxd5 {[%clk 0:02:44]} 5. c3 {[%clk 0:02:50.8]}
5... Bg7 {[%clk 0:02:43.8]} 6. Nf3 {[%clk 0:02:49.4]} 6... O-O {[%clk
0:02:44.2]} 7. O-O {[%clk 0:02:49.1]} 7... Bg4 {[%clk 0:02:39.2]} 8. h3 {[%clk
0:02:48.5]} 8... Bxf3 {[%clk 0:02:39.4]} 9. Qxf3 {[%clk 0:02:49.1]} 9... c6
{[%clk 0:02:39.9]} 10. Nd2 {[%clk 0:02:46.2]} 10... Nd7 {[%clk 0:02:38.6]} 11.
Nc4 {[%clk 0:02:43.7]} 11... N5b6 {[%clk 0:02:36.7]} 12. Be3 {[%clk 0:02:25.7]}
12... Nxc4 {[%clk 0:02:36]} 13. Bxc4 {[%clk 0:02:24.8]} 13... Nb6 {[%clk
0:02:36.6]} 14. Bd3 {[%clk 0:02:21.9]} 14... e6 {[%clk 0:02:33.3]} 15. Rfe1
{[%clk 0:02:19.3]} 15... Nd5 {[%clk 0:02:32.3]} 16. Rad1 {[%clk 0:02:17.9]}
16... a5 {[%clk 0:02:21.6]} 17. Qe2 {[%clk 0:02:04.7]} 17... a4 {[%clk
0:02:12.9]} 18. Qd2 {[%clk 0:02:02.4]} 18... Nxe3 {[%clk 0:02:12.1]} 19. fxe3
{[%clk 0:01:59.3]} 19... a3 {[%clk 0:02:10.8]} 20. b3 {[%clk 0:01:58.4]} 20...
e5 {[%clk 0:02:08.9]} 21. Bc4 {[%clk 0:01:46.2]} 21... exd4 {[%clk 0:01:57.4]}
22. exd4 {[%clk 0:01:44.5]} 22... Qd6 {[%clk 0:01:45.1]} 23. b4 {[%clk
0:01:41.9]} 23... Kh8 {[%clk 0:01:38.7]} 24. Kh1 {[%clk 0:01:40.7]} 24... b5
{[%clk 0:01:26.7]} 25. Bb3 {[%clk 0:01:38.8]} 25... h5 {[%clk 0:01:16]} 26. Qf2
{[%clk 0:01:33.5]} 26... Kh7 {[%clk 0:01:10.7]} 27. Re4 {[%clk 0:01:31.3]} 27...
f6 {[%clk 0:00:58.3]} 28. Rde1 {[%clk 0:01:30.1]} 28... Ra7 {[%clk 0:00:52.5]}
29. Re6 {[%clk 0:01:28.8]} 29... Qd7 {[%clk 0:00:51.4]} 30. Qf3 {[%clk
0:01:28.1]} 30... Rc7 {[%clk 0:00:49.7]} 31. Bc2 {[%clk 0:01:24.7]} 31... f5
{[%clk 0:00:43.2]} 32. Qf4 {[%clk 0:01:16]} 32... Rf6 {[%clk 0:00:38.4]} 33. Bb3
{[%clk 0:01:11.9]} 33... Rxe6 {[%clk 0:00:32.5]} 34. Rxe6 {[%clk 0:01:11.9]}
34... Bh6 {[%clk 0:00:23.8]} 35. Qg3 {[%clk 0:01:10.9]} 35... Qg7 {[%clk
0:00:16.2]} 36. Rxg6 {[%clk 0:01:07]} 36... Qxg6 {[%clk 0:00:17]} 37. Qxc7+
{[%clk 0:01:06.5]} 37... Bg7 {[%clk 0:00:17.9]} 38. Qf4 {[%clk 0:01:02.7]} 38...
Bh6 {[%clk 0:00:17.3]} 39. Qf3 {[%clk 0:01:00.6]} 39... f4 {[%clk 0:00:16.1]}
40. d5 {[%clk 0:00:55.3]} 40... Bg5 {[%clk 0:00:11.7]} 41. dxc6 {[%clk
0:00:45.9]} 41... Bh4 {[%clk 0:00:11.8]} 42. c7 {[%clk 0:00:41.3]} 42... Qe8
{[%clk 0:00:05.9]} 43. Qd3+ {[%clk 0:00:34]} 43... Kh6 {[%clk 0:00:05.3]} 44.
Qd6+ {[%clk 0:00:27.5]} 44... Kg5 {[%clk 0:00:04.9]} 45. Qd8+ {[%clk 0:00:26]}
1-0

[Event "*** Titled Tuesday Blitz"]
[Site "Chess.com"]
[Date "2020.04.14"]
[Round "6"]
[White "SHIVACalypso"]
[Black "CroissantNeuf"]
[Result "1/2-1/2"]
[WhiteElo "2256"]
[BlackElo "2393"]
[TimeControl "180+1"]
[EndTime "11:03:55 PDT"]
[Termination "Game drawn by repetition"]

1. Nf3 {[%clk 0:03:00.9]} 1... d5 {[%clk 0:02:59.1]} 2. c4 {[%clk 0:03:00.2]}
2... e6 {[%clk 0:02:55.8]} 3. g3 {[%clk 0:02:59.4]} 3... a6 {[%clk 0:02:53.2]}
4. cxd5 {[%clk 0:02:52.3]} 4... exd5 {[%clk 0:02:52.8]} 5. Bg2 {[%clk
0:02:52.7]} 5... Nf6 {[%clk 0:02:52.4]} 6. O-O {[%clk 0:02:52.1]} 6... Bd6
{[%clk 0:02:48.5]} 7. b3 {[%clk 0:02:52]} 7... O-O {[%clk 0:02:47.8]} 8. Bb2
{[%clk 0:02:52]} 8... Re8 {[%clk 0:02:47.3]} 9. d3 {[%clk 0:02:46.9]} 9... c5
{[%clk 0:02:32.2]} 10. Re1 {[%clk 0:02:45.1]} 10... Nc6 {[%clk 0:02:30.8]} 11.
Nbd2 {[%clk 0:02:44.4]} 11... d4 {[%clk 0:02:25.8]} 12. Nc4 {[%clk 0:02:41.8]}
12... Bf8 {[%clk 0:02:19.5]} 13. a4 {[%clk 0:02:39.5]} 13... Be6 {[%clk
0:02:08.3]} 14. e3 {[%clk 0:02:26.6]} 14... dxe3 {[%clk 0:02:04.1]} 15. Nxe3
{[%clk 0:02:18]} 15... Nb4 {[%clk 0:01:57.2]} 16. d4 {[%clk 0:02:11.7]} 16...
Nfd5 {[%clk 0:01:27.5]} 17. Nxd5 {[%clk 0:01:53.5]} 17... Bxd5 {[%clk
0:01:19.5]} 18. Rxe8 {[%clk 0:01:46.4]} 18... Qxe8 {[%clk 0:01:20.4]} 19. dxc5
{[%clk 0:01:46.6]} 19... Bxc5 {[%clk 0:01:20.1]} 20. Ba3 {[%clk 0:01:35.5]}
20... Rd8 {[%clk 0:00:57.4]} 21. Bxb4 {[%clk 0:01:22.2]} 21... Bxb4 {[%clk
0:00:52.3]} 22. Qd4 {[%clk 0:01:22.6]} 22... Be7 {[%clk 0:00:30.5]} 23. Qe3
{[%clk 0:01:22.5]} 23... Bf6 {[%clk 0:00:27]} 24. Re1 {[%clk 0:01:04.1]} 24...
Qxe3 {[%clk 0:00:25]} 25. Rxe3 {[%clk 0:01:05]} 25... Bc6 {[%clk 0:00:22.5]} 26.
h4 {[%clk 0:00:54.6]} 26... g6 {[%clk 0:00:21.6]} 27. Ne5 {[%clk 0:00:51.5]}
27... Rd1+ {[%clk 0:00:19.2]} 28. Kh2 {[%clk 0:00:51.1]} 28... Bxg2 {[%clk
0:00:15.3]} 29. Kxg2 {[%clk 0:00:52]} 29... Rd2 {[%clk 0:00:12]} 30. Nc4 {[%clk
0:00:51]} 30... Rc2 {[%clk 0:00:10.3]} 31. Rd3 {[%clk 0:00:49.8]} 31... Be7
{[%clk 0:00:08.7]} 32. Ne3 {[%clk 0:00:44.8]} 32... Rb2 {[%clk 0:00:07.6]} 33.
Rc3 {[%clk 0:00:43.3]} 33... Bf6 {[%clk 0:00:06.6]} 34. Rd3 {[%clk 0:00:43]}
34... Be7 {[%clk 0:00:06.3]} 35. Rc3 {[%clk 0:00:42]} 35... Bb4 {[%clk
0:00:06.4]} 36. Rd3 {[%clk 0:00:39.1]} 36... Bc5 {[%clk 0:00:05.4]} 37. Kf3
{[%clk 0:00:38.3]} 37... Kg7 {[%clk 0:00:04.9]} 38. Rc3 {[%clk 0:00:35.3]} 38...
Bd4 {[%clk 0:00:04.5]} 39. Rd3 {[%clk 0:00:35.6]} 39... Bc5 {[%clk 0:00:05.2]}
40. Rc3 {[%clk 0:00:33.6]} 40... b6 {[%clk 0:00:05.2]} 41. Rd3 {[%clk
0:00:29.8]} 41... a5 {[%clk 0:00:04.6]} 42. Nd1 {[%clk 0:00:27.5]} 42... Rc2
{[%clk 0:00:04]} 43. Ne3 {[%clk 0:00:27.3]} 43... Rb2 {[%clk 0:00:04]} 44. Nd1
{[%clk 0:00:24.9]} 44... Rc2 {[%clk 0:00:04.4]} 45. Ne3 {[%clk 0:00:24.6]} 45...
Rb2 {[%clk 0:00:04.8]} 1/2-1/2